Cogmind - Beta 11.1 @@@ ROGUE MODE // 2022.05.28 @ 04:48:47 Player: leiavoia Result: Destroyed by D-53 Grenadier with Mini Grenade Launcher Performance ------------- Evolutions (0) 0 Regions Visited (2) 400 Robots Destroyed (37) 185 Value Destroyed (747) 747 Prototype IDs (2) 40 Alien Tech Used (0) 0 Bonus (8) 8 TOTAL SCORE: 1380 Bonus ------- High Alert Combat Kills 8 Cogmind --------- Core Integrity 0/250 Matter 241/300 Energy 98/100 System Corruption 0% Temperature Cool (0) Movement Treading (320) Ox2 Location -10/Mines Parts ------- > --- POWER (1) -------- (None) > --- PROPULSION (2) --- Light Treads Light Treads > --- UTILITY (2) ------ Huge Storage Unit Core Shielding > --- WEAPON (2) ------- Heavy Assault Rifle Heavy Assault Rifle > --- INVENTORY (25) --- Ion Engine Light Treads High-capacity Matter Pod (149) Improved Terrain Scanner Core Shielding Core Shielding Tractor Beam Beam Rifle Beam Rifle Beam Rifle Beam Rifle Heavy Assault Rifle Heavy Assault Rifle Shotgun Shotgun Shotgun Grenade Launcher Rocket Launcher Rocket Launcher Rocket Launcher Rocket Launcher Peak State ------------ > --- POWER ------------ Ion Engine > --- PROPULSION ------- Aluminum Leg Aluminum Leg > --- UTILITY ---------- Huge Storage Unit Seismic Detector > --- WEAPON ----------- Heavy Assault Rifle Heavy Assault Rifle > --- INVENTORY -------- Ion Engine Light Ion Engine Light Treads Light Treads Light Treads Light Treads Medium Storage Unit Medium Matter Pod Improved Terrain Scanner EM Pulse Gun Beam Rifle Beam Rifle Beam Rifle Beam Rifle Heavy Assault Rifle Heavy Assault Rifle Shotgun Shotgun Shotgun Shotgun Rocket Launcher Rocket Launcher Rocket Launcher Rocket Launcher [Rating: 13] Favorites ----------- Power Ion Engine Engine Ion Engine Propulsion Aluminum Leg Treads Light Treads Leg Aluminum Leg Wheel Wheel Utility Huge Storage Unit Device Seismic Detector Storage Huge Storage Unit Protection Core Shielding Weapon Heavy Assault Rifle Energy Gun EM Pulse Gun Ballistic Gun Heavy Assault Rifle Ballistic Cannon Light Cannon Launcher Grenade Launcher Build | -11 -10 -10 ------- Run | Scr Mat Min Slots Evolved . | . . . Power . | . . . Propulsion . | . . . Utility . | . . . Weapon . | . . . Parts Attached 27 | 1 21 5 Power 4 | . 4 . Engine 4 | . 4 . Core . | . . . Reactor . | . . . Propulsion 6 | . 3 3 Treads 4 | . 1 3 Leg 1 | . 1 . Wheel 1 | . 1 . Hover . | . . . Flight . | . . . Utility 6 | 1 5 . Device 1 | 1 . . Storage 4 | . 4 . Processor . | . . . Hackware . | . . . Protection 1 | . 1 . Artifact . | . . . Weapon 11 | . 9 2 Energy Gun . | . . . Energy Cannon . | . . . Ballistic Gun 7 | . 6 1 Ballistic Cannon 1 | . . 1 Launcher 3 | . 3 . Special Weapon . | . . . Impact Weapon . | . . . Slashing Weapon . | . . . Piercing Weapon . | . . . Special Melee Weapon . | . . . Unidentified Prototypes . | . . . Parts Lost 7 | . 2 5 Power 2 | . 1 1 Propulsion 3 | . . 3 Utility 1 | . 1 . Weapon 1 | . . 1 Highest Loss Streak 4 | . 1 4 To Critical Strikes 1 | . . 1 Average Slot Usage (%) 96 | . 96 99 Engine 13 | . 13 13 Treads 9 | . 7 18 Leg 10 | . 12 . Wheel 8 | . 7 9 Device 5 | . 6 . Storage 14 | . 14 14 Protection 6 | . 4 14 Energy Gun 1 | . 1 . Ballistic Gun 22 | . 23 22 Launcher 2 | . 3 . Naked Turns . | . . . Heaviest Build 96 | 13 96 92 Greatest Support 40 | 20 20 40 Greatest Overweight (x) 9 | . 9 9 Average Overweight (x) 5 | . 4 7 Largest Inventory Capacity 25 | 8 25 25 Average Capacity 21 | 8 20 25 Most Carried 25 | 7 25 25 Average Carried 20 | 6 19 24 Final Capacity 25 | 8 25 25 Final Carried 25 | 7 25 21 Class Distribution -------------------- 98% | Mutant Dominant Class ---------------- Mutant | -10/Materials Mutant | -10/Mines Resources | -11 -10 -10 ----------- Run | Scr Mat Min Matter Collected 1068 | 210 673 185 Remotely . | . . . Salvage Created 1093 | 85 944 64 Parts 69 | 7 59 3 Haulers Intercepted 2 | . 2 . Recyclers Shooed 1 | . 1 . Parts Field Recycled . | . . . Retrieved Matter . | . . . Parts Self-Destructed . | . . . Prevented . | . . . Kills | -11 -10 -10 ------- Run | Scr Mat Min Combat Hostiles Destroyed 24 | . 20 4 Guns 15 | . 14 1 Cannons 3 | . . 3 AOE 6 | . 6 . Classes Destroyed 9 | 2 6 1 Worker 3 | . 3 . Builder 1 | . 1 . Tunneler 1 | 1 . . Hauler 2 | . 2 . Recycler 4 | 1 3 . Watcher 2 | . 2 . Swarmer 9 | . 6 3 Grunt 14 | . 14 . Demolisher 1 | . . 1 Best Kill Streak 5 | 2 5 3 Combat Bots Only 3 | . 3 3 Max Kills in Single Turn 3 | 1 3 1 Gunslinging 1 | . 1 . Exploded 2 | . 2 . Melee . | . . . Uniques/NPCs Destroyed . | . . . Combat | -11 -10 -10 -------- Run | Scr Mat Min Damage Taken 1336 | . 400 936 Core 250 | . 38 212 Absorbed by Shields . | . . . Redirected to Shielding 39 | . 4 35 Core Remaining (%) 100 | 100 . . Volleys Fired 70 | 3 56 11 Largest 2 | 2 2 2 Hottest 80 | 80 80 58 Shots Fired 136 | 6 108 22 Gun 124 | 6 100 18 Cannon 4 | . . 4 Launcher 8 | . 8 . Special . | . . . Kinetic 114 | . 92 22 Thermal . | . . . Explosive 8 | . 8 . Electromagnetic 14 | 6 8 . Robot Hit Streak 6 | 2 6 4 Robot Miss Streak 9 | 1 9 2 Penetration Max . | . . . Secondary Targets 4 | . 3 1 Max Gunslinging Chain 1 | . 1 1 Shots Hit Robots 77 | 3 58 16 Core Hits 50 | 3 41 6 Critical Kills . | . . . Critical Parts Destroyed . | . . . Critical Strikes . | . . . Melee Attacks . | . . . Impact . | . . . Slashing . | . . . Piercing . | . . . Sneak Attacks . | . . . Combat Hostiles . | . . . Follow-up Attacks . | . . . Damage Inflicted 1650 | 37 1355 258 Guns 1104 | 37 885 182 Cannons 76 | . . 76 Explosions 470 | . 470 . Melee . | . . . Ramming . | . . . Kinetic 1098 | . 840 258 Thermal . | . . . Explosive 470 | . 470 . Electromagnetic 82 | 37 45 . Impact . | . . . Slashing . | . . . Piercing . | . . . Highest Corruption . | . . . Average Corruption . | . . . Corruption Purged . | . . . Corruption Blocked . | . . . Overload Shots . | . . . Overflow Damage 29 | . 29 . Projectiles . | . . . Explosions 29 | . 29 . Melee . | . . . Knockbacks . | . . . Impact . | . . . Kinetic . | . . . Secondary . | . . . Self-Inflicted Damage 38 | . 38 . Shots 1 | . 1 . Rammed . | . . . Targets Rammed . | . . . Kicked . | . . . Crushed . | . . . Highest Temperature 72 | 56 72 . Average Temperature 20 | 25 18 . Received Heat Transfer 174 | . 174 . Siege Activations . | . . . Robots Corrupted . | . . . Combat Hostiles . | . . . Parts Fried . | . . . Impact Corruptions . | . . . Robots Melted . | . . . Combat Hostiles . | . . . Parts Melted . | . . . Heat Transferred . | . . . Parts Sabotaged . | . . . Parts Stolen . | . . . Parts Stripped . | . . . Power Chain Reactions . | . . . Missiles Intercepted . | . . . Alert | -11 -10 -10 ------- Run | Scr Mat Min Peak Influence 428 | 10 428 190 Initial 130 | . 6 130 Average 176 | 8 186 148 Maximum Alert Level 2 | . 2 . Low Security (%) 64 | 100 56 100 Level 1 34 | . 41 . Level 2 1 | . 1 . Level 3 . | . . . Level 4 . | . . . Level 5 . | . . . High Security . | . . . Max Security . | . . . Squads Dispatched 4 | . 4 . Investigation 4 | . 4 . Extermination . | . . . Reinforcement . | . . . Assault . | . . . Garrison . | . . . Intercept . | . . . Searches Triggered . | . . . Construction Impeded . | . . . Haulers Reinforced . | . . . Active Scanning Responses . | . . . Cargo Convoy Interrupts . | . . . Stealth | -11 -10 -10 --------- Run | Scr Mat Min Distress Signals 4 | . 3 1 Communications Jammed . | . . . Distress Signals . | . . . Times Spotted 34 | . 29 5 Peak Tracking Total 4 | . 4 3 Tactical Retreats . | . . . Traps | -11 -10 -10 ------- Run | Scr Mat Min Traps Triggered 1 | . 1 . Indirectly . | . . . Trap Hack Attempts . | . . . Triggered . | . . . Disarmed . | . . . Reprogrammed . | . . . Reused . | . . . Traps Extracted . | . . . Installed . | . . . Triggered . | . . . Machines | -11 -10 -10 ---------- Run | Scr Mat Min Machines Disabled 4 | . 4 . Max in Single Turn 1 | . 1 . Machines Sabotaged . | . . . Garrisons Compromised . | . . . Overloaded Fab Kills . | . . . Hacking | -11 -10 -10 --------- Run | Scr Mat Min Machines Accessed 10 | . 10 . Terminals 8 | . 8 . Fabricators . | . . . Repair Stations . | . . . Recycling Units 2 | . 2 . Scanalyzers . | . . . Garrison Access . | . . . Total Hacks 34 | . 34 . Successful 20 | . 20 . Failed 13 | . 13 . Catastrophic 1 | . 1 . Database Lockouts 1 | . 1 . Manual 14 | . 14 . Terminals 28 | . 28 . Fabricators . | . . . Repair Stations . | . . . Recycling Units 6 | . 6 . Scanalyzers . | . . . Garrison Access . | . . . Terminal Hacks 12 | . 12 . Robot Analysis 1 | . 1 . Prototype ID Bank 1 | . 1 . Terminal Index 1 | . 1 . Scanalyzer Index 1 | . 1 . Unreport Threat 2 | . 2 . Locate Traps 1 | . 1 . Maintenance Status 1 | . 1 . Hauler Manifests 2 | . 2 . Registered Components 1 | . 1 . Zone Layout 1 | . 1 . Fabricator Hacks . | . . . Repair Station Hacks . | . . . Recycling Unit Hacks 1 | . 1 . Retrieve Components 1 | . 1 . Scanalyzer . | . . . Garrison Access Hacks . | . . . Unauthorized Hacks 7 | . 7 . Terminals 5 | . 5 . Track 1 | . 1 . Assimilate 1 | . 1 . Botnet 1 | . 1 . Detonate 1 | . 1 . Operators 1 | . 1 . Fabricators . | . . . Repair Stations . | . . . Recycling Units 2 | . 2 . Tunnel 2 | . 2 . Scanalyzers . | . . . Garrison Access . | . . . Data Cores Recovered . | . . . Used . | . . . Hacking Detections 7 | . 7 . Full Trace Events 3 | . 3 . Feedback Events . | . . . Feedback Blocked . | . . . Robot Schematics Acquired . | . . . Robots Built . | . . . Authchips . | . . . Time . | . . . Total Robot Build Rating . | . . . Part Schematics Acquired . | . . . Parts Built . | . . . Authchips . | . . . Time . | . . . Total Part Build Rating . | . . . Parts Repaired . | . . . Time . | . . . Parts Recycled . | . . . Recycled Matter . | . . . Retrieved Matter . | . . . Retrieved Components 6 | . 6 . Parts Scanalyzed . | . . . Part Schematics Acquired . | . . . Parts Damaged . | . . . Bothacking | -11 -10 -10 ------------ Run | Scr Mat Min Used RIF Installer . | . . . Robots Hacked . | . . . Non-combat . | . . . Combat . | . . . Robot Hacks Applied . | . . . Relay Couplers Released . | . . . Fabnet Peak Effective % . | . . . Robots Rewired . | . . . Allies Hacked . | . . . Hacks Repelled . | . . . Allies | -11 -10 -10 -------- Run | Scr Mat Min Total Allies . | . . . Largest Group . | . . . Highest-Rated Group . | . . . Highest-Rated Ally . | . . . Total Orders . | . . . Ally Attacks . | . . . Total Damage . | . . . Kills . | . . . Allies Corrupted . | . . . Allies Melted . | . . . Intel | -11 -10 -10 ------- Run | Scr Mat Min Robot Analysis Total 1 | . 1 . Derelict Logs Recovered . | . . . Drone Launches . | . . . Drone Recoveries . | . . . Exploration | -11 -10 -10 ------------- Run | Scr Mat Min Turns Passed 1757 | 38 1453 266 Spaces Moved 745 | 23 625 97 Core . | . . . Treads 19 | . . 19 Legs 317 | 23 294 . Wheels 409 | . 331 78 Hover . | . . . Flight . | . . . Fastest Speed 120 | 120 120 215 Average Speed 195 | 120 191 235 Slowest Speed 400 | 120 400 320 Overloaded Moves . | . . . Propulsion Burnouts . | . . . Robots Hopped . | . . . Cave-ins Triggered . | . . . Exploration Rate (%) 42 | 2 98 28 Regions Visited 2 Branch Regions 1 Pre-discovered Areas 2 | . 2 . Known Exits Taken . | . . . Unknown Exits Taken 2 | 1 1 . Scrap Searched 1 | . . 1 Spaces Dug . | . . . Terrain Destroyed 38 | . 38 . Melee . | . . . Projectile . | . . . AOE 38 | . 38 . Terrain Rammed . | . . . Walls Destroyed . | . . . Machines Disabled . | . . . Actions | -11 -10 -10 --------- Run | Scr Mat Min Total 917 | 27 773 117 Wait 30 | . 30 . Move 743 | 22 624 97 Hop . | . . . Pick Up 29 | 1 27 1 Fast Attach 13 | 1 11 1 Attach 5 | . 1 4 Detach 2 | . 1 1 Swap 9 | . 9 . Drop 16 | . 14 2 Fire 70 | 3 56 11 Melee . | . . . Ram . | . . . Kick . | . . . Crush . | . . . Escape Stasis . | . . . Rewire . | . . . Trap . | . . . Miscellaneous . | . . . Route ------- -11/Scrapyard -10/Materials (discovered 4 exits: [*Mat x3] / [*Min]) -10/Mines (discovered 1 exit: [*Mat]) History --------- Turn | Location | Event 11 | -11/Scrapyard | Discovered new exit (range 3) 39 | -11/Scrapyard | Entered Materials 91 | -10/Materials | Central database locked down 102 | -10/Materials | Discovered new exit (range 6) 238 | -10/Materials | Discovered new exit (range 6) 334 | -10/Materials | Build established: Mutant 388 | -10/Materials | Discovered new exit (range 10) 1257 | -10/Materials | Discovered new exit (range 12) 1492 | -10/Materials | Entered Mines 1578 | -10/Mines | Discovered new exit (range 5) 1703 | -10/Mines | Assembled infested the area 1741 | -10/Mines | Core integrity fell below 50% 1747 | -10/Mines | Core integrity fell below 20% 1758 | -10/Mines | Destroyed by D-53 Grenadier with Mini Grenade Launcher Last Messages --------------- 01687_ R-06 Scavenger collects Lgt. Ion Engine. 01691_ R-06 Scavenger collects Flight Unit. 01698_ R-06 Scavenger collects Lgt. Ion Engine. 01703_ ALERT: Infestation in the mines, dispatching Demolisher response squad. 01705_ Acquired 1 matter. 01708_ Acquired 6 matter. 01712_ Acquired 2 matter. 01731_ Acquired 65 matter. 01732_ C-30 ARC bursts open, deploying its payload. 01732_ D-53 Grenadier unfolds itself. 01734_ R-06 Scavenger destroyed. 01736_ Lgt. Cannon destroyed. 01744_ Lgt. Treads destroyed. 01744_ Ion Engine destroyed. 01745_ The unstable cave ceiling collapses. 01746_ Lgt. Treads destroyed. 01749_ D-53 Grenadier destroyed. 01749_ Switching to secondary target: D-53 Grenadier. 01752_ The unstable cave ceiling collapses. Map ----- +----------------------------------------------------+ | ???????????????????????????????????????????? | | ???????????????????????????????????????????? | | ???????????????????????????????????????????? | | ???????????????????????????????????????????? | | ???????????????????????????????????????????? | | ???????????????????????????????????????????? | | ???????????????????????????????????????????? | | ???????????????????????????????????????????? | | ???????????????????????????????????????????? | | ???????????????????????????????????????????? | | ????????????????????? ?????????????????????? | | ????????????????????? ???????????????????? | | ??????????????????#?? ???????????????????? | | ????????????????## ?# ???????????????????? | | ??????????????## ? ???????????????????? | | ??????????????# # ???????????????????? | | ??????????????# # ????????????????????? | | ??????????????# = ###??????????????????? | | ??????????????? %####?????????????????? | | ??????????????? d ??????????????????? | | ???????????????? % ???????????????????? | | ???????????????## u###???????????????????? | | ??????????????## ##??????????????????? | | ??????????##### #??????????????????? | | ?????????## # # #??????????????????? | | ?????????# @ #??????????????????? | | ????????## #??????????????????? | | ????????# #???? ?????????????? | | ????????# ###???? ?????????????? | | ????????## # ###????? #????????????? | | ?????????#### ########?????? ????????????? | | ????????????# #????????????? ????????????? | | ????????????# #????????????? ????????????? | | ????????????# ####?????????? ????????????? | | ????????????# #?????????? #???????????? | | ????????????# #??????????# #???????????? | | ????????????#### #??????????# #???????????? | | ???????????????# #??????????# #???????????? | | ???????????????# #??????????# #???????????? | | ???????????????# #??????????# #???????????? | | ???????????##### ###??####### #???#???????? | | ???????????# [ #### #??? ?###???? | | ???????????#! ! ! #??? # ##??? | | ???????????## = ! ### ##### #??? | | ????????????##### ##?# ! %! < #??? | | ????????????????## ## #??# ##### ###?? | | ?????????????????##### ##??# #??# #?? | | ?????????????????????# ##???# #### #?? | | ?????????????????????# ####?# # ##?? | | ??????????????#####??# #?## #### ####??? | +----------------------------------------------------+ Best States ------------- Heat Dissipation 25 Energy Generation 10 Energy Capacity 250 Matter Stores 300 Matter Capacity 300 Sight Range 16 Terrain Scan Density 10 Core Shielding 20 Evasion (%) 55 Recoil Reduction 2 Item Schematics ----------------- None Robot Schematics ------------------ None Fabricated ------------ Nothing Alien Tech Used ----------------- None Achievements -------------- None Challenges ------------ None Game ------ Seed AblativeSapperSword Manual? 0 Play Time 00:19:42 Cumulative 681.1 hours Start 2022.05.28 @ 04:30:52 End 2022.05.28 @ 04:48:47 Sessions 1 Manual Loads 0 Difficulty Rogue Special Mode None Game No. 171 Rogue 139 Adventurer 31 Explorer 1 Win Type - Total 34 Types 25/0/4/4/0/0/1/0/0 Lore% 82 Gallery% 86 Achievement% 72 Wizard Run 0 Options --------- ASCII 0 Keyboard 0 Movement Arrows Keybinds 0 Fullscreen 1 Font 20/Terminus Map View 66x50 Tactical HUD 1 Map Filters NONE Filters NONE Steam 1 RUN: 236010ba-80ab-499d-8a4b-dad29f171961